[Event "Early-Titled-Tuesday-Blitz-September-26-2023"]
[Site "Chess.com"]
[Date "2023.09.26"]
[Round "4"]
[White "rezamahdavi2008"]
[Black "Agibileg"]
[Result "1-0"]
[WhiteElo "2878"]
[BlackElo "2670"]
[TimeControl "180+1"]
[EndTime "8:39:31 PDT"]
[Termination "rezamahdavi2008 won by resignation"]

1. Nf3 {[%clk 0:03:00.9]} 1... Nf6 {[%clk 0:02:59.6]} 2. g3 {[%clk 0:03:01.1]}
2... g6 {[%clk 0:02:59.7]} 3. b3 {[%clk 0:03:01]} 3... Bg7 {[%clk 0:02:58.4]} 4.
Bb2 {[%clk 0:03:01.9]} 4... O-O {[%clk 0:02:58.3]} 5. Bg2 {[%clk 0:03:02.5]}
5... d5 {[%clk 0:02:58.4]} 6. c4 {[%clk 0:03:02.7]} 6... dxc4 {[%clk 0:02:56.3]}
7. bxc4 {[%clk 0:03:02.6]} 7... c5 {[%clk 0:02:56.8]} 8. O-O {[%clk 0:03:02.1]}
8... Nc6 {[%clk 0:02:56.2]} 9. d3 {[%clk 0:03:02.3]} 9... Re8 {[%clk 0:02:26.7]}
10. Nc3 {[%clk 0:03:01.4]} 10... e5 {[%clk 0:02:22.8]} 11. Nd2 {[%clk
0:02:58.7]} 11... Be6 {[%clk 0:02:18.7]} 12. Rb1 {[%clk 0:02:50.7]} 12... Rb8
{[%clk 0:02:17.4]} 13. Ba3 {[%clk 0:02:41.8]} 13... Qa5 {[%clk 0:02:08]} 14. Qc1
{[%clk 0:02:30.8]} 14... Nd4 {[%clk 0:02:06.9]} 15. Re1 {[%clk 0:02:17.2]} 15...
b6 {[%clk 0:01:22.9]} 16. e3 {[%clk 0:02:11]} 16... Nf5 {[%clk 0:01:22.2]} 17.
Bb2 {[%clk 0:01:48.3]} 17... Rbd8 {[%clk 0:01:05.2]} 18. Qc2 {[%clk 0:01:42.6]}
18... Qa6 {[%clk 0:00:59.3]} 19. Rbd1 {[%clk 0:01:30]} 19... Qc8 {[%clk
0:00:56.4]} 20. Nde4 {[%clk 0:01:27.8]} 20... Nxe4 {[%clk 0:00:49.9]} 21. Nxe4
{[%clk 0:01:28.4]} 21... Ne7 {[%clk 0:00:49]} 22. Bc3 {[%clk 0:01:21.8]} 22...
Nc6 {[%clk 0:00:46.7]} 23. Qa4 {[%clk 0:01:20.1]} 23... Nb4 {[%clk 0:00:12.6]}
24. Bxb4 {[%clk 0:01:15.5]} 24... cxb4 {[%clk 0:00:13.5]} 25. Qxb4 {[%clk
0:01:16.4]} 25... Qd7 {[%clk 0:00:13.8]} 26. Rd2 {[%clk 0:01:12.4]} 26... f5
{[%clk 0:00:12.9]} 27. Ng5 {[%clk 0:01:12.1]} 27... Bf8 {[%clk 0:00:10.7]} 28.
Qb3 {[%clk 0:01:08.3]} 28... Kh8 {[%clk 0:00:03.3]} 29. Nxe6 {[%clk 0:01:07.6]}
29... Qxe6 {[%clk 0:00:04.2]} 30. Red1 {[%clk 0:01:08.5]} 30... Be7 {[%clk
0:00:03.6]} 31. Bd5 {[%clk 0:01:09.2]} 31... Qf6 {[%clk 0:00:03.7]} 32. Qa4
{[%clk 0:01:09]} 32... a5 {[%clk 0:00:03.4]} 33. Rb2 {[%clk 0:01:03.6]} 33...
Bb4 {[%clk 0:00:02.8]} 34. a3 {[%clk 0:01:03.5]} 34... Bc5 {[%clk 0:00:03.2]}
35. Rbd2 {[%clk 0:01:01.6]} 35... f4 {[%clk 0:00:03.2]} 36. exf4 {[%clk
0:01:00.5]} 36... exf4 {[%clk 0:00:02.5]} 37. d4 {[%clk 0:01:01.2]} 37... Bd6
{[%clk 0:00:02.6]} 38. Qc6 {[%clk 0:00:59.9]} 38... Rf8 {[%clk 0:00:02.6]} 39.
Qxb6 {[%clk 0:00:57.6]} 39... fxg3 {[%clk 0:00:02.2]} 40. hxg3 {[%clk
0:00:58.5]} 40... Qg5 {[%clk 0:00:01.8]} 41. Rd3 {[%clk 0:00:54.9]} 41... Rxf2
{[%clk 0:00:02.1]} 42. Kxf2 {[%clk 0:00:55.1]} 42... Rf8+ {[%clk 0:00:02.6]} 43.
Kg2 {[%clk 0:00:54.4]} 43... Qf6 {[%clk 0:00:03.1]} 44. Rf3 {[%clk 0:00:51.5]}
1-0

[Event "Early-Titled-Tuesday-Blitz-September-26-2023"]
[Site "Chess.com"]
[Date "2023.09.26"]
[Round "4"]
[White "JoliyRoger"]
[Black "RamonManon0g"]
[Result "1-0"]
[WhiteElo "2505"]
[BlackElo "2297"]
[TimeControl "180+1"]
[EndTime "8:39:31 PDT"]
[Termination "JoliyRoger won by checkmate"]

1. d4 {[%clk 0:03:00.9]} 1... Nf6 {[%clk 0:02:56.3]} 2. c4 {[%clk 0:03:01.4]}
2... g6 {[%clk 0:02:56.5]} 3. Nc3 {[%clk 0:03:01.9]} 3... d5 {[%clk 0:02:57.1]}
4. Nf3 {[%clk 0:03:01.6]} 4... Bg7 {[%clk 0:02:57]} 5. Bg5 {[%clk 0:03:02.2]}
5... Ne4 {[%clk 0:02:56.1]} 6. cxd5 {[%clk 0:03:02.7]} 6... Nxg5 {[%clk
0:02:53.7]} 7. Nxg5 {[%clk 0:03:03.3]} 7... e6 {[%clk 0:02:54.1]} 8. Nf3 {[%clk
0:03:03.9]} 8... exd5 {[%clk 0:02:54.3]} 9. e3 {[%clk 0:03:04.8]} 9... O-O
{[%clk 0:02:53.7]} 10. b4 {[%clk 0:03:05.4]} 10... c6 {[%clk 0:02:52.7]} 11. Be2
{[%clk 0:03:03.8]} 11... Qe7 {[%clk 0:02:45.9]} 12. Qb3 {[%clk 0:03:02.8]} 12...
a6 {[%clk 0:02:44.8]} 13. O-O {[%clk 0:03:03.2]} 13... Qd7 {[%clk 0:02:44.8]}
14. a4 {[%clk 0:03:01.1]} 14... Qe7 {[%clk 0:02:42.4]} 15. b5 {[%clk 0:03:01.6]}
15... axb5 {[%clk 0:02:42.3]} 16. axb5 {[%clk 0:03:02.4]} 16... Rxa1 {[%clk
0:02:42.4]} 17. Rxa1 {[%clk 0:03:03.2]} 17... Nd7 {[%clk 0:02:42.2]} 18. bxc6
{[%clk 0:03:03.2]} 18... bxc6 {[%clk 0:02:43.1]} 19. Ra7 {[%clk 0:02:55.7]}
19... Qd6 {[%clk 0:02:35.5]} 20. Na4 {[%clk 0:02:41.2]} 20... c5 {[%clk
0:02:26.5]} 21. Qa3 {[%clk 0:02:01.9]} 21... Qb8 {[%clk 0:02:23.4]} 22. Nxc5
{[%clk 0:02:02.5]} 22... Nxc5 {[%clk 0:02:20.1]} 23. dxc5 {[%clk 0:02:02.9]}
23... Bf5 {[%clk 0:02:08.8]} 24. Nd4 {[%clk 0:01:37]} 24... Qb1+ {[%clk
0:02:04.3]} 25. Bf1 {[%clk 0:01:36.4]} 25... Bxd4 {[%clk 0:01:44.9]} 26. exd4
{[%clk 0:01:36]} 26... Re8 {[%clk 0:01:45.8]} 27. Ra8 {[%clk 0:01:27.2]} 27...
Rxa8 {[%clk 0:01:28.3]} 28. Qxa8+ {[%clk 0:01:27.4]} 28... Kg7 {[%clk
0:01:29.2]} 29. Qa3 {[%clk 0:01:20.4]} 29... Qd1 {[%clk 0:01:20.3]} 30. Qe3
{[%clk 0:01:20]} 30... f6 {[%clk 0:00:58.7]} 31. f3 {[%clk 0:01:18.2]} 31... g5
{[%clk 0:00:55.2]} 32. g4 {[%clk 0:01:15]} 32... Bc2 {[%clk 0:00:52.4]} 33. Kg2
{[%clk 0:01:11.3]} 33... Kg6 {[%clk 0:00:46.8]} 34. Be2 {[%clk 0:01:10.5]} 34...
Qa1 {[%clk 0:00:36.8]} 35. c6 {[%clk 0:00:57.6]} 35... Qa5 {[%clk 0:00:26.3]}
36. Qe8+ {[%clk 0:00:40.8]} 36... Kh6 {[%clk 0:00:21.9]} 37. Qf8+ {[%clk
0:00:34.5]} 37... Kg6 {[%clk 0:00:21.4]} 38. Qe8+ {[%clk 0:00:26.5]} 38... Kh6
{[%clk 0:00:20.9]} 39. Qf7 {[%clk 0:00:21.8]} 39... Qd2 {[%clk 0:00:18.3]} 40.
Qxf6+ {[%clk 0:00:17.1]} 40... Bg6 {[%clk 0:00:18.9]} 41. Qf8# {[%clk
0:00:17.5]} 1-0

[Event "Early-Titled-Tuesday-Blitz-September-26-2023"]
[Site "Chess.com"]
[Date "2023.09.26"]
[Round "4"]
[White "DonJuanEGenaro"]
[Black "GameOverBro"]
[Result "0-1"]
[WhiteElo "1858"]
[BlackElo "2421"]
[TimeControl "180+1"]
[EndTime "8:39:31 PDT"]
[Termination "GameOverBro won by resignation"]

1. d4 {[%clk 0:03:00.9]} 1... Nf6 {[%clk 0:02:59.3]} 2. Nf3 {[%clk 0:02:55.8]}
2... e6 {[%clk 0:02:58.8]} 3. g3 {[%clk 0:02:54.8]} 3... c5 {[%clk 0:02:58.9]}
4. c3 {[%clk 0:02:52.6]} 4... Nc6 {[%clk 0:02:59]} 5. Bg2 {[%clk 0:02:52.5]}
5... b6 {[%clk 0:02:59.2]} 6. Nbd2 {[%clk 0:02:45.3]} 6... Bb7 {[%clk
0:02:46.5]} 7. O-O {[%clk 0:02:41]} 7... Be7 {[%clk 0:02:44.9]} 8. e4 {[%clk
0:02:40.7]} 8... d5 {[%clk 0:02:41.5]} 9. e5 {[%clk 0:02:40.4]} 9... Ne4 {[%clk
0:02:41.7]} 10. Qe2 {[%clk 0:02:05]} 10... cxd4 {[%clk 0:02:31]} 11. cxd4 {[%clk
0:01:55]} 11... Qc7 {[%clk 0:02:19.9]} 12. Nxe4 {[%clk 0:01:44.8]} 12... dxe4
{[%clk 0:02:20]} 13. Qxe4 {[%clk 0:01:42.2]} 13... Nb4 {[%clk 0:02:11.5]} 14.
Qg4 {[%clk 0:01:37.6]} 14... g6 {[%clk 0:01:56.8]} 15. Bh6 {[%clk 0:01:25.4]}
15... Qd7 {[%clk 0:01:35.8]} 16. a3 {[%clk 0:01:19.6]} 16... Nd5 {[%clk
0:01:27.4]} 17. Rfc1 {[%clk 0:01:14]} 17... b5 {[%clk 0:01:19.6]} 18. Nd2 {[%clk
0:01:13.6]} 18... a5 {[%clk 0:01:15.8]} 19. Bg5 {[%clk 0:01:12]} 19... O-O
{[%clk 0:01:13.6]} 20. Ne4 {[%clk 0:01:10.8]} 20... Qd8 {[%clk 0:00:55.6]} 21.
Bxe7 {[%clk 0:01:05.6]} 21... Qxe7 {[%clk 0:00:56.5]} 22. Nf6+ {[%clk
0:01:04.1]} 22... Nxf6 {[%clk 0:00:39.1]} 23. exf6 {[%clk 0:01:02]} 23... Qd7
{[%clk 0:00:36.3]} 24. Qg5 {[%clk 0:00:53.5]} 24... Kh8 {[%clk 0:00:36]} 25. d5
{[%clk 0:00:37.9]} 25... exd5 {[%clk 0:00:25.8]} 26. Rd1 {[%clk 0:00:36.9]}
26... d4 {[%clk 0:00:11.8]} 27. Bxb7 {[%clk 0:00:30.1]} 27... Qxb7 {[%clk
0:00:12.7]} 28. Qh6 {[%clk 0:00:26.3]} 28... Rg8 {[%clk 0:00:12.1]} 29. Rxd4
{[%clk 0:00:26.1]} 29... g5 {[%clk 0:00:12.6]} 30. Rad1 {[%clk 0:00:21.2]} 30...
Rae8 {[%clk 0:00:10.6]} 31. Rd7 {[%clk 0:00:19.6]} 31... Qf3 {[%clk 0:00:09.5]}
32. Rxf7 {[%clk 0:00:17.9]} 32... Qxd1+ {[%clk 0:00:09.6]} 33. Kg2 {[%clk
0:00:17.3]} 33... Qd5+ {[%clk 0:00:10.5]} 34. Kh3 {[%clk 0:00:15.7]} 34... Qxf7
{[%clk 0:00:11.4]} 0-1

[Event "Early-Titled-Tuesday-Blitz-September-26-2023"]
[Site "Chess.com"]
[Date "2023.09.26"]
[Round "4"]
[White "sonicdravise"]
[Black "HajiyevKanan"]
[Result "0-1"]
[WhiteElo "2647"]
[BlackElo "2486"]
[TimeControl "180+1"]
[EndTime "8:39:32 PDT"]
[Termination "HajiyevKanan won on time"]

1. d4 {[%clk 0:03:00.9]} 1... Nf6 {[%clk 0:02:58.3]} 2. c4 {[%clk 0:03:01.6]}
2... e6 {[%clk 0:02:58.3]} 3. Nc3 {[%clk 0:03:02.4]} 3... Bb4 {[%clk 0:02:58.9]}
4. e3 {[%clk 0:03:02.3]} 4... O-O {[%clk 0:02:59.1]} 5. Ne2 {[%clk 0:03:02.4]}
5... d5 {[%clk 0:02:59.7]} 6. a3 {[%clk 0:03:02.6]} 6... Be7 {[%clk 0:02:59.6]}
7. cxd5 {[%clk 0:03:03]} 7... exd5 {[%clk 0:03:00.5]} 8. Nf4 {[%clk 0:03:03.5]}
8... c6 {[%clk 0:02:59.9]} 9. Bd3 {[%clk 0:03:04.1]} 9... Bg4 {[%clk 0:02:59.9]}
10. f3 {[%clk 0:03:02.1]} 10... Bh5 {[%clk 0:02:57.8]} 11. Nxh5 {[%clk
0:02:58.2]} 11... Nxh5 {[%clk 0:02:58.7]} 12. O-O {[%clk 0:02:58.9]} 12... Nd7
{[%clk 0:02:57.8]} 13. Bc2 {[%clk 0:02:57.1]} 13... Bf6 {[%clk 0:02:54.5]} 14.
e4 {[%clk 0:02:53]} 14... dxe4 {[%clk 0:02:51.3]} 15. fxe4 {[%clk 0:02:51.6]}
15... g6 {[%clk 0:02:51.2]} 16. e5 {[%clk 0:02:33.1]} 16... Bg5 {[%clk 0:02:45]}
17. Qg4 {[%clk 0:02:26.9]} 17... Bxc1 {[%clk 0:02:44.4]} 18. Raxc1 {[%clk
0:02:27.7]} 18... Ng7 {[%clk 0:02:30.9]} 19. Kh1 {[%clk 0:02:09.9]} 19... f5
{[%clk 0:02:27.2]} 20. Qe2 {[%clk 0:01:53]} 20... Nb6 {[%clk 0:02:25.6]} 21.
Bb3+ {[%clk 0:01:49.9]} 21... Kh8 {[%clk 0:02:26]} 22. Rcd1 {[%clk 0:01:47.9]}
22... Nd5 {[%clk 0:02:23.6]} 23. Nxd5 {[%clk 0:01:43]} 23... cxd5 {[%clk
0:02:24.5]} 24. Qb5 {[%clk 0:01:40.1]} 24... Rf7 {[%clk 0:02:12.6]} 25. Qxd5
{[%clk 0:01:27]} 25... Rd7 {[%clk 0:02:10.5]} 26. Qc4 {[%clk 0:01:24.4]} 26...
Rc8 {[%clk 0:02:10.8]} 27. Qd3 {[%clk 0:01:20.2]} 27... Qc7 {[%clk 0:01:58.6]}
28. Rfe1 {[%clk 0:01:16.2]} 28... Rcd8 {[%clk 0:01:57.6]} 29. d5 {[%clk
0:01:13]} 29... Qc5 {[%clk 0:01:50.4]} 30. Qc4 {[%clk 0:01:07.9]} 30... Qxc4
{[%clk 0:01:50.4]} 31. Bxc4 {[%clk 0:01:07.4]} 31... Ne6 {[%clk 0:01:49.1]} 32.
d6 {[%clk 0:01:02.6]} 32... Re8 {[%clk 0:01:46]} 33. Bb5 {[%clk 0:01:01.3]}
33... Red8 {[%clk 0:01:44.8]} 34. Bxd7 {[%clk 0:00:59]} 34... Rxd7 {[%clk
0:01:45.7]} 35. Rc1 {[%clk 0:00:58.1]} 35... Kg7 {[%clk 0:01:44.9]} 36. Rc8
{[%clk 0:00:53.4]} 36... g5 {[%clk 0:01:40.8]} 37. Rec1 {[%clk 0:00:47.8]} 37...
Kg6 {[%clk 0:01:33.5]} 38. g3 {[%clk 0:00:38.8]} 38... f4 {[%clk 0:01:31.3]} 39.
Kg2 {[%clk 0:00:37.1]} 39... Kf5 {[%clk 0:01:31.3]} 40. R8c7 {[%clk 0:00:16.8]}
40... Rd8 {[%clk 0:01:15.4]} 41. Rxh7 {[%clk 0:00:14.8]} 41... Kxe5 {[%clk
0:01:12.3]} 42. Rxb7 {[%clk 0:00:14.1]} 42... Rxd6 {[%clk 0:01:11]} 43. Re1+
{[%clk 0:00:09.8]} 43... Kf5 {[%clk 0:01:10.1]} 44. gxf4 {[%clk 0:00:04.9]}
44... Nxf4+ {[%clk 0:01:08.1]} 45. Kf1 {[%clk 0:00:05.7]} 45... Rd2 {[%clk
0:01:06.7]} 46. Rxa7 {[%clk 0:00:04.7]} 46... Rxh2 {[%clk 0:01:03.7]} 47. Ra5+
{[%clk 0:00:02.6]} 47... Kg4 {[%clk 0:01:03.6]} 48. Ree5 {[%clk 0:00:01.5]}
48... Rxb2 {[%clk 0:01:01.7]} 49. Rxg5+ {[%clk 0:00:01.2]} 49... Kf3 {[%clk
0:01:02.6]} 0-1

[Event "Early-Titled-Tuesday-Blitz-September-26-2023"]
[Site "Chess.com"]
[Date "2023.09.26"]
[Round "4"]
[White "Bauman_Guy"]
[Black "vovachesss"]
[Result "0-1"]
[WhiteElo "2888"]
[BlackElo "2749"]
[TimeControl "180+1"]
[EndTime "8:39:33 PDT"]
[Termination "vovachesss won by resignation"]

1. e4 {[%clk 0:03:00.9]} 1... e5 {[%clk 0:02:59.1]} 2. Nf3 {[%clk 0:03:01.2]}
2... d5 {[%clk 0:02:59.6]} 3. Nxe5 {[%clk 0:02:59.3]} 3... Bd6 {[%clk
0:02:59.2]} 4. d4 {[%clk 0:02:59.7]} 4... dxe4 {[%clk 0:02:59.9]} 5. Nc3 {[%clk
0:03:00.3]} 5... Bxe5 {[%clk 0:03:00.3]} 6. dxe5 {[%clk 0:02:59.4]} 6... Qxd1+
{[%clk 0:03:01.2]} 7. Kxd1 {[%clk 0:02:58.1]} 7... Bf5 {[%clk 0:02:54.6]} 8. Bf4
{[%clk 0:02:50.2]} 8... Nc6 {[%clk 0:02:54.2]} 9. Bc4 {[%clk 0:02:50.1]} 9...
O-O-O+ {[%clk 0:02:51.1]} 10. Kc1 {[%clk 0:02:49.9]} 10... f6 {[%clk 0:01:36.3]}
11. exf6 {[%clk 0:02:47.5]} 11... Nxf6 {[%clk 0:01:37.2]} 12. Re1 {[%clk
0:02:44.5]} 12... Rhe8 {[%clk 0:01:35.8]} 13. b3 {[%clk 0:02:42.3]} 13... Ne5
{[%clk 0:01:05.7]} 14. Be2 {[%clk 0:02:35.3]} 14... Ng6 {[%clk 0:01:03.6]} 15.
Be3 {[%clk 0:02:29.9]} 15... Ng4 {[%clk 0:00:59.3]} 16. Bxg4 {[%clk 0:02:20.2]}
16... Bxg4 {[%clk 0:00:59.1]} 17. h3 {[%clk 0:02:21.1]} 17... Bd7 {[%clk
0:00:57.1]} 18. Kb2 {[%clk 0:02:19.1]} 18... Bc6 {[%clk 0:00:57]} 19. Rad1
{[%clk 0:02:18.2]} 19... b6 {[%clk 0:00:53.4]} 20. a4 {[%clk 0:02:15.2]} 20...
a5 {[%clk 0:00:52.7]} 21. Kc1 {[%clk 0:01:48.2]} 21... Rxd1+ {[%clk 0:00:51.4]}
22. Rxd1 {[%clk 0:01:42.2]} 22... Nh4 {[%clk 0:00:52.3]} 23. Rg1 {[%clk
0:01:38.6]} 23... h6 {[%clk 0:00:51]} 24. Ne2 {[%clk 0:01:37.3]} 24... g5 {[%clk
0:00:46.2]} 25. Nd4 {[%clk 0:01:36.8]} 25... Bd7 {[%clk 0:00:41.5]} 26. g3
{[%clk 0:01:32.4]} 26... Nf3 {[%clk 0:00:36.8]} 27. Nxf3 {[%clk 0:01:32.1]}
27... exf3 {[%clk 0:00:37.7]} 28. h4 {[%clk 0:01:33]} 28... Rxe3 {[%clk
0:00:19.6]} 29. fxe3 {[%clk 0:00:48]} 29... Bh3 {[%clk 0:00:19]} 30. hxg5 {[%clk
0:00:44.9]} 30... hxg5 {[%clk 0:00:19.9]} 31. Kd2 {[%clk 0:00:38.3]} 31... f2
{[%clk 0:00:20]} 32. Rh1 {[%clk 0:00:38.9]} 32... f1=Q {[%clk 0:00:20.3]} 33.
Rxf1 {[%clk 0:00:39.8]} 33... Bxf1 {[%clk 0:00:20.8]} 34. Kc3 {[%clk 0:00:38.1]}
34... Kd7 {[%clk 0:00:20.5]} 35. b4 {[%clk 0:00:38.5]} 35... Kd6 {[%clk
0:00:18.2]} 36. bxa5 {[%clk 0:00:38.5]} 36... bxa5 {[%clk 0:00:18.7]} 37. Kd4
{[%clk 0:00:38.9]} 37... c5+ {[%clk 0:00:17]} 38. Ke4 {[%clk 0:00:38.4]} 38...
Bh3 {[%clk 0:00:16.3]} 39. c3 {[%clk 0:00:31.5]} 39... Bd7 {[%clk 0:00:16.7]}
40. c4 {[%clk 0:00:31.6]} 40... Bxa4 {[%clk 0:00:16.3]} 41. Kf5 {[%clk
0:00:32.5]} 41... Bc2+ {[%clk 0:00:16]} 42. Kxg5 {[%clk 0:00:32.2]} 42... a4
{[%clk 0:00:16.9]} 43. Kf4 {[%clk 0:00:32.5]} 43... a3 {[%clk 0:00:17.8]} 44. e4
{[%clk 0:00:32.8]} 44... a2 {[%clk 0:00:18.7]} 45. Ke3 {[%clk 0:00:33.7]} 45...
a1=Q {[%clk 0:00:19.6]} 0-1

[Event "Early-Titled-Tuesday-Blitz-September-26-2023"]
[Site "Chess.com"]
[Date "2023.09.26"]
[Round "4"]
[White "SAInt_666"]
[Black "MikaelyanArman"]
[Result "1/2-1/2"]
[WhiteElo "2666"]
[BlackElo "2867"]
[TimeControl "180+1"]
[EndTime "8:39:36 PDT"]
[Termination "Game drawn by repetition"]

1. e4 {[%clk 0:03:00.9]} 1... e5 {[%clk 0:02:59.3]} 2. Nf3 {[%clk 0:03:00.2]}
2... Nc6 {[%clk 0:02:59.7]} 3. Bc4 {[%clk 0:03:00.9]} 3... Bc5 {[%clk
0:02:59.2]} 4. c3 {[%clk 0:03:01.2]} 4... Nf6 {[%clk 0:02:58.3]} 5. d3 {[%clk
0:03:01.5]} 5... d6 {[%clk 0:02:57.6]} 6. O-O {[%clk 0:03:01]} 6... a6 {[%clk
0:02:58.2]} 7. Bb3 {[%clk 0:03:00.8]} 7... Ba7 {[%clk 0:02:58.7]} 8. Nbd2 {[%clk
0:02:59.9]} 8... O-O {[%clk 0:02:56.2]} 9. h3 {[%clk 0:02:59.9]} 9... Be6 {[%clk
0:02:56.5]} 10. Re1 {[%clk 0:02:54]} 10... Bxb3 {[%clk 0:02:55]} 11. axb3 {[%clk
0:02:54.9]} 11... a5 {[%clk 0:02:50.8]} 12. Nf1 {[%clk 0:02:49.1]} 12... d5
{[%clk 0:02:28.5]} 13. Bg5 {[%clk 0:02:48.6]} 13... dxe4 {[%clk 0:02:24]} 14.
dxe4 {[%clk 0:02:49.5]} 14... h6 {[%clk 0:01:53.3]} 15. Qxd8 {[%clk 0:02:39.9]}
15... Rfxd8 {[%clk 0:01:54.2]} 16. Bxf6 {[%clk 0:02:40.4]} 16... gxf6 {[%clk
0:01:55]} 17. Rad1 {[%clk 0:02:36.4]} 17... Ne7 {[%clk 0:01:38.8]} 18. Nh4
{[%clk 0:02:22.9]} 18... Rd6 {[%clk 0:01:26.2]} 19. Rxd6 {[%clk 0:02:16.6]}
19... cxd6 {[%clk 0:01:27.1]} 20. Rd1 {[%clk 0:02:09.9]} 20... Bc5 {[%clk
0:01:15.7]} 21. Ng3 {[%clk 0:02:09.5]} 21... Ra6 {[%clk 0:01:15.9]} 22. c4
{[%clk 0:01:32.7]} 22... Rb6 {[%clk 0:01:13.7]} 23. Rd3 {[%clk 0:01:31.9]} 23...
a4 {[%clk 0:01:09]} 24. bxa4 {[%clk 0:01:15.1]} 24... Rxb2 {[%clk 0:01:09.9]}
25. Rf3 {[%clk 0:01:15.7]} 25... Ng6 {[%clk 0:00:51.3]} 26. Nhf5 {[%clk
0:01:06.2]} 26... Nf4 {[%clk 0:00:39.9]} 27. Nxh6+ {[%clk 0:01:05.7]} 27... Kh7
{[%clk 0:00:31.2]} 28. Ng4 {[%clk 0:01:05.4]} 28... Rc2 {[%clk 0:00:14.8]} 29.
Nxf6+ {[%clk 0:01:01.2]} 29... Kg6 {[%clk 0:00:15.5]} 30. Nd5 {[%clk 0:01:00.4]}
30... Nxd5 {[%clk 0:00:05.9]} 31. cxd5 {[%clk 0:01:01.3]} 31... Ra2 {[%clk
0:00:05]} 32. h4 {[%clk 0:00:41.9]} 32... Rxa4 {[%clk 0:00:05.2]} 33. h5+ {[%clk
0:00:42.1]} 33... Kg7 {[%clk 0:00:05.9]} 34. Nf5+ {[%clk 0:00:41.8]} 34... Kh7
{[%clk 0:00:06.4]} 35. Ng3 {[%clk 0:00:20.6]} 35... Kg7 {[%clk 0:00:04.9]} 36.
Nf5+ {[%clk 0:00:20.3]} 36... Kh7 {[%clk 0:00:05.3]} 37. Ng3 {[%clk 0:00:20.7]}
37... Kg7 {[%clk 0:00:05.2]} 1/2-1/2

[Event "Early-Titled-Tuesday-Blitz-September-26-2023"]
[Site "Chess.com"]
[Date "2023.09.26"]
[Round "4"]
[White "cukin84"]
[Black "Kostukov_Alex"]
[Result "0-1"]
[WhiteElo "2217"]
[BlackElo "2391"]
[TimeControl "180+1"]
[EndTime "8:39:36 PDT"]
[Termination "Kostukov_Alex won by checkmate"]

1. e4 {[%clk 0:03:00.9]} 1... c5 {[%clk 0:02:37.6]} 2. Nc3 {[%clk 0:03:00]} 2...
g6 {[%clk 0:02:35.1]} 3. f4 {[%clk 0:02:59.2]} 3... Bg7 {[%clk 0:02:35.3]} 4.
Nf3 {[%clk 0:02:59.6]} 4... Nc6 {[%clk 0:02:35.9]} 5. Bb5 {[%clk 0:02:58.6]}
5... Nd4 {[%clk 0:02:35.5]} 6. Bc4 {[%clk 0:02:58.2]} 6... e6 {[%clk 0:02:35.5]}
7. O-O {[%clk 0:02:56.9]} 7... Ne7 {[%clk 0:02:35.7]} 8. d3 {[%clk 0:02:56.6]}
8... d5 {[%clk 0:02:32.7]} 9. exd5 {[%clk 0:02:55.9]} 9... exd5 {[%clk
0:02:33.6]} 10. Bb5+ {[%clk 0:02:52.8]} 10... Nxb5 {[%clk 0:02:32.9]} 11. Nxb5
{[%clk 0:02:53]} 11... a6 {[%clk 0:02:28.5]} 12. Nc3 {[%clk 0:02:52.1]} 12...
O-O {[%clk 0:02:28.8]} 13. Kh1 {[%clk 0:02:43.7]} 13... b5 {[%clk 0:02:28.9]}
14. d4 {[%clk 0:02:42.8]} 14... b4 {[%clk 0:02:22]} 15. Ne2 {[%clk 0:02:36]}
15... c4 {[%clk 0:02:22]} 16. c3 {[%clk 0:02:35.4]} 16... a5 {[%clk 0:02:21.1]}
17. Ne5 {[%clk 0:02:32.4]} 17... f6 {[%clk 0:02:18.5]} 18. Nf3 {[%clk
0:02:27.9]} 18... Bf5 {[%clk 0:02:15.1]} 19. Ng3 {[%clk 0:02:26.5]} 19... Bd3
{[%clk 0:02:14.5]} 20. Re1 {[%clk 0:02:26]} 20... Qd7 {[%clk 0:02:12.8]} 21. Be3
{[%clk 0:02:15.3]} 21... Nf5 {[%clk 0:02:12.1]} 22. Bf2 {[%clk 0:02:12.8]} 22...
Rfe8 {[%clk 0:02:09.9]} 23. Qd2 {[%clk 0:02:10.8]} 23... bxc3 {[%clk 0:02:05.6]}
24. Qxc3 {[%clk 0:02:05.5]} 24... h5 {[%clk 0:01:57]} 25. b3 {[%clk 0:02:04.2]}
25... Nxg3+ {[%clk 0:01:51.6]} 26. hxg3 {[%clk 0:02:01.3]} 26... Be4 {[%clk
0:01:47.1]} 27. bxc4 {[%clk 0:02:00]} 27... dxc4 {[%clk 0:01:36]} 28. Qxc4+
{[%clk 0:01:59.4]} 28... Bd5 {[%clk 0:01:27.5]} 29. Qd3 {[%clk 0:01:59.6]} 29...
Kh7 {[%clk 0:01:23]} 30. Nh4 {[%clk 0:01:56.6]} 30... Qg4 {[%clk 0:01:22.6]} 31.
Kg1 {[%clk 0:01:48.3]} 31... Rad8 {[%clk 0:01:13.4]} 32. Rac1 {[%clk 0:01:45.6]}
32... Rxe1+ {[%clk 0:01:11]} 33. Rxe1 {[%clk 0:01:44.8]} 33... Rd7 {[%clk
0:01:11.2]} 34. a3 {[%clk 0:01:29.6]} 34... a4 {[%clk 0:01:09]} 35. Kh2 {[%clk
0:01:26.3]} 35... Bb3 {[%clk 0:01:07.3]} 36. Re8 {[%clk 0:01:19.1]} 36... Kh6
{[%clk 0:01:04.9]} 37. Be1 {[%clk 0:00:58.4]} 37... Be6 {[%clk 0:00:59.7]} 38.
Bb4 {[%clk 0:00:56.4]} 38... Bf7 {[%clk 0:00:57.6]} 39. Ra8 {[%clk 0:00:54.2]}
39... Qe6 {[%clk 0:00:52.1]} 40. Bf8 {[%clk 0:00:51.9]} 40... Qd5 {[%clk
0:00:49.3]} 41. Bxg7+ {[%clk 0:00:51.5]} 41... Kxg7 {[%clk 0:00:49.6]} 42. Rb8
{[%clk 0:00:46.8]} 42... Qxd4 {[%clk 0:00:46.3]} 43. Qf3 {[%clk 0:00:44.6]}
43... Qd3 {[%clk 0:00:45.7]} 44. Qc6 {[%clk 0:00:43.5]} 44... Re7 {[%clk
0:00:41.8]} 45. Qc8 {[%clk 0:00:42.4]} 45... Re8 {[%clk 0:00:40.5]} 46. Qc7
{[%clk 0:00:38.6]} 46... Rxb8 {[%clk 0:00:40.5]} 47. Qxb8 {[%clk 0:00:38.8]}
47... Qxa3 {[%clk 0:00:41.4]} 48. f5 {[%clk 0:00:36.6]} 48... g5 {[%clk
0:00:40.5]} 49. Nf3 {[%clk 0:00:35.8]} 49... Qc5 {[%clk 0:00:38.8]} 50. Qa8
{[%clk 0:00:29.8]} 50... a3 {[%clk 0:00:38.8]} 51. Qa4 {[%clk 0:00:29.2]} 51...
a2 {[%clk 0:00:38.4]} 52. Kh3 {[%clk 0:00:26.9]} 52... Qxf5+ {[%clk 0:00:38.2]}
53. Kh2 {[%clk 0:00:27.3]} 53... Qb1 {[%clk 0:00:38.5]} 54. Nxg5 {[%clk
0:00:24.4]} 54... a1=Q {[%clk 0:00:38.4]} 55. Nxf7 {[%clk 0:00:23.8]} 55... Qh1#
{[%clk 0:00:38.4]} 0-1